Cogmind - Beta 15 @@@ ROGUE MODE // 2025.07.06 @ 16:14:35 Player: snuf Result: Self-destructed Performance ------------- Evolutions (5) 2500 Regions Visited (10) 2000 Robots Destroyed (117) 585 Value Destroyed (4229) 4229 Prototype IDs (8) 160 Alien Tech Used (0) 0 Bonus (355) 355 TOTAL SCORE: 9829 Bonus ------- High Alert Combat Kills 27 Follower Combat Kills 328 Cogmind --------- Core Integrity 874/1000 Matter 300/300 Energy 402/850 System Corruption 8% Temperature Cool (9) Movement Hovering (236) Ox3 Location -5/Factory Parts ------- > --- POWER (2) -------- Hybrid Deuterium Engine Micro Fission Core > --- PROPULSION (5) --- Gravmag System Gravmag System > --- UTILITY (8) ------ Experimental Heat Sink Large Storage Unit Advanced Sensor Array Improved Signal Interpreter Improved Terrain Scan Processor Advanced Field Recycling Unit > --- WEAPON (2) ------- Enhanced Force Lance > --- INVENTORY (15) --- Improved Treads Wheel Wheel Wheel Experimental Heat Sink Large Storage Unit Improved Sensor Array Improved Medium Armor Plating Improved Recalibrator KE Penetrator KE Penetrator Antimatter Cannon Antimatter Cannon Powered Hammer Makeshift Sword Peak State ------------ > --- POWER ------------ Hybrid Deuterium Engine Micro Fission Core > --- PROPULSION ------- Improved Treads Gravmag System Gravmag System Gravmag System Antigrav System > --- UTILITY ---------- Experimental Heat Sink Large Storage Unit Advanced Sensor Array Improved Signal Interpreter Advanced Terrain Scanner Improved Terrain Scan Processor Improved Transmission Jammer Advanced Field Recycling Unit > --- WEAPON ----------- Precision Grenade Launcher Enhanced Force Lance > --- INVENTORY -------- Wheel Wheel Wheel Gravmag System Experimental Heat Sink Large Storage Unit Improved Sensor Array Improved Medium Armor Plating Improved Recalibrator KE Penetrator KE Penetrator Antimatter Cannon Antimatter Cannon Powered Hammer Makeshift Sword [Rating: 85] Favorites ----------- Power Light Fission Core Engine Heavy Deuterium Engine Power Core Light Fission Core Propulsion Light Treads Treads Light Treads Leg Carbon-fiber Leg Wheel Armored Wheel Hover Unit Gravmag System Utility Large Storage Unit Device Improved Sensor Array Storage Large Storage Unit Processor Improved Signal Interpreter Hackware System Shield Protection Improved Light Armor Plating Weapon Heavy Assault Rifle Energy Gun Cooled Plasma Rifle Energy Cannon Advanced Beam Cannon Ballistic Gun Heavy Assault Rifle Ballistic Cannon Antimatter Cannon Launcher Precision Grenade Launcher Impact Weapon Powered Hammer Slashing Weapon Greatsword Piercing Weapon Enhanced Force Lance Build | -11 -10 -10 -9 -9 -8 -7 -6 -6 -6 -5 ------- Run | Yrd Mat Min Mat Min Mat Fac Fac Was Fac Fac Slots Evolved 10 | . . . 2 . 2 2 2 . . 2 Power 1 | . . . . . . . . . . 1 Propulsion 3 | . . . 1 . . 1 . . . 1 Utility 6 | . . . 1 . 2 1 2 . . . Weapon . | . . . . . . . . . . . Parts Attached 125 | . 5 . 29 3 25 6 9 4 19 25 Power 16 | . 1 . 3 1 3 2 . . 3 3 Engine 12 | . 1 . 3 1 2 2 . . 2 1 Core 4 | . . . . . 1 . . . 1 2 Reactor . | . . . . . . . . . . . Propulsion 42 | . 3 . 9 . 7 . 4 1 5 13 Treads 14 | . 2 . 5 . 1 . 2 . 2 2 Leg 9 | . . . 2 . 5 . 1 . 1 . Wheel 13 | . 1 . 2 . 1 . 1 1 2 5 Hover 6 | . . . . . . . . . . 6 Flight . | . . . . . . . . . . . Utility 43 | . 1 . 8 1 10 2 5 3 7 6 Device 20 | . . . 3 1 3 2 3 1 3 4 Storage 5 | . 1 . 2 . 1 . 1 . . . Processor 4 | . . . . . 1 . 1 . 1 1 Hackware 1 | . . . . . 1 . . . . . Protection 13 | . . . 3 . 4 . . 2 3 1 Artifact . | . . . . . . . . . . . Weapon 24 | . . . 9 1 5 2 . . 4 3 Energy Gun 5 | . . . 2 . 1 . . . . 2 Energy Cannon 2 | . . . 1 . 1 . . . . . Ballistic Gun 10 | . . . 6 . 2 1 . . . 1 Ballistic Cannon 1 | . . . . . . . . . 1 . Launcher 2 | . . . . 1 . . . . 1 . Special Weapon . | . . . . . . . . . . . Impact Weapon 1 | . . . . . . . . . 1 . Slashing Weapon 2 | . . . . . 1 1 . . . . Piercing Weapon 1 | . . . . . . . . . 1 . Special Melee Weapon . | . . . . . . . . . . . Unidentified Prototypes 8 | . . . 1 . 1 1 . . 2 3 Parts Lost 28 | . . . 5 . 2 2 . 3 2 14 Power 3 | . . . 1 . . . . . 1 1 Propulsion 10 | . . . 2 . . . . 2 . 6 Utility 13 | . . . 2 . 1 2 . 1 1 6 Weapon 2 | . . . . . 1 . . . . 1 Highest Loss Streak 5 | . . . 2 . 1 1 . 3 2 5 To Critical Strikes . | . . . . . . . . . . . Average Backups 13 | . 7 9 12 15 14 14 14 14 14 13 Power . | . 1 1 1 1 1 1 1 1 . . Propulsion 3 | . 4 5 2 3 5 5 5 1 1 2 Utility 3 | . . 2 4 3 2 2 . 1 6 5 Weapon 5 | . 1 1 4 6 6 5 7 9 6 4 Tool/Special . | . . . . . . . . . . . Unused Backups 64 | . 4 . 12 4 10 6 3 5 12 8 Power 9 | . 1 . 3 . 3 2 . . . . Propulsion 11 | . . . 2 . 5 1 . 1 1 1 Utility 14 | . 1 . 2 2 . . 1 . 4 4 Weapon 29 | . 2 . 5 2 2 3 2 4 7 2 Tool/Special 1 | . . . . . . . . . . 1 Average Slot Usage (%) 90 | . 98 100 98 100 97 97 89 86 74 96 Engine 6 | . 14 14 11 11 7 3 6 6 1 6 Core 2 | . . . . . 1 3 . . 4 3 Treads 10 | . 13 14 19 22 5 . 4 4 9 8 Leg 7 | . 6 . 1 . 15 30 17 2 1 . Wheel 10 | . 7 14 12 11 5 . 4 14 14 14 Device 14 | . . . 6 6 18 25 32 26 11 15 Storage 10 | . 26 28 22 15 9 7 6 6 6 5 Processor 3 | . . . . . 3 . 3 6 6 10 Protection 8 | . . . 3 11 11 11 6 8 8 11 Energy Gun 1 | . 14 14 4 . . . . . . 2 Energy Cannon 1 | . . . 1 11 3 . . . . . Ballistic Gun 5 | . 14 14 16 7 5 5 . . . . Slashing Weapon 3 | . . . . . 7 6 6 6 4 . Peak Build Rating 85 | . 7 7 15 15 31 42 54 61 68 85 Average Rating 39 | . 6 7 13 14 24 37 51 53 58 64 On Entrance 26 | 6 6 7 7 15 15 31 42 54 61 47 Naked Turns . | . . . . . . . . . . . Heaviest Build 105 | 10 22 22 57 61 47 49 48 88 105 69 Greatest Support 58 | 20 40 16 40 16 43 58 58 32 44 58 Greatest Overweight (x) 4 | . 1 1 4 3 2 . 2 4 4 3 Average Overweight (x) 1 | . . 1 1 2 . . . 2 2 1 Largest Inventory Capacity 15 | . 10 10 15 15 15 15 15 15 15 15 Average Capacity 14 | . 9 10 13 15 15 15 15 15 15 15 Most Carried 15 | . 9 9 15 15 15 15 15 15 15 15 Average Carried 13 | . 7 9 12 14 14 14 14 14 14 13 Final Capacity 15 | 8 10 10 15 15 15 15 15 15 15 15 Final Carried 15 | 6 9 9 15 15 15 15 13 15 10 15 Class Distribution -------------------- 43% | Scavenger-Mutant 18% | Scavenger-Assassin 16% | Mutant 8% | Assassin 7% | Scavenger-Gladiator 6% | Gladiator Dominant Class ---------------- Mutant | -10/Materials Mutant | -10/Mines Scavenger-Mutant | -9/Materials Scavenger-Mutant | -9/Mines Scavenger-Mutant | -8/Materials Scavenger-Mutant | -7/Factory Scavenger-Gladiator | -6/Factory Gladiator | -6/Waste Scavenger-Assassin | -6/Factory Scavenger-Assassin | -5/Factory Resources | -11 -10 -10 -9 -9 -8 -7 -6 -6 -6 -5 ----------- Run | Yrd Mat Min Mat Min Mat Fac Fac Was Fac Fac Matter Collected 2882 | 186 77 . 756 112 374 129 . 153 705 390 Remotely . | . . . . . . . . . . . Salvage Created 4355 | . 114 . 1169 164 884 353 . . 915 756 Parts 249 | . 4 . 75 10 44 21 . . 44 51 Haulers Intercepted 4 | . . . 2 . 1 . . . . 1 Recyclers Shooed 4 | . . . . . 2 . . . . 2 Parts Field Recycled 8 | . . . . . . . . . 8 . Retrieved Matter 330 | . . . . . . . . . 330 . Parts Self-Destructed . | . . . . . . . . . . . Prevented . | . . . . . . . . . . . Kills | -11 -10 -10 -9 -9 -8 -7 -6 -6 -6 -5 ------- Run | Yrd Mat Min Mat Min Mat Fac Fac Was Fac Fac Combat Hostiles Destroyed 91 | . 3 . 26 7 18 7 . . 17 13 Melee 36 | . . . . . 16 7 . . 9 4 Guns 27 | . 3 . 24 . . . . . . . Cannons 3 | . . . 1 1 . . . . 1 . AOE 23 | . . . . 5 2 . . . 7 9 Classes Destroyed 18 | . 1 . 5 2 3 1 . . . 6 Worker 9 | . . . 1 . 1 . . . 5 2 Builder 2 | . . . . 1 . . . . . 1 Tunneler 1 | . . . . . . . . . . 1 Hauler 4 | . . . 2 . 1 . . . . 1 Recycler 4 | . . . 1 . 1 . . . 1 1 Mechanic 1 | . . . . . . . . . . 1 Operator 2 | . . . . . . . . . . 2 Watcher 3 | . . . . . 2 . . . 1 . Swarmer 16 | . . . 7 3 3 . . . 3 . Saboteur 1 | . . . . . . . . . . 1 Grunt 40 | . 3 . 12 3 10 5 . . 7 . Brawler 1 | . . . . 1 . . . . . . Duelist 1 | . . . . . 1 . . . . . Protector 1 | . . . . . . . . . . 1 Sentry 14 | . . . 7 . 2 1 . . 2 2 Specialist 2 | . . . . . . . . . . 2 Hunter 6 | . . . . . 2 . . . . 4 Programmer 9 | . . . . . . 1 . . 5 3 Best Kill Streak 10 | . 3 . 7 3 5 3 . . 9 10 Combat Bots Only 9 | . 3 . 6 3 4 3 . . 4 9 Max Kills in Single Turn 7 | . 1 . 2 3 3 1 . . 7 3 Gunslinging . | . . . . . . . . . . . Exploded 3 | . . . . 3 2 . . . 2 3 Melee 1 | . . . . . 1 1 . . 1 1 Uniques/NPCs Destroyed . | . . . . . . . . . . . Combat | -11 -10 -10 -9 -9 -8 -7 -6 -6 -6 -5 -------- Run | Yrd Mat Min Mat Min Mat Fac Fac Was Fac Fac Hostile Shots Fired 726 | . 23 . 144 13 99 65 8 2 203 169 Missed 216 | . 4 . 24 4 37 22 3 . 72 50 Hits 510 | . 19 . 120 9 62 43 5 2 131 119 Melee 3 | . . . . . 1 . . 2 . . Projectile 507 | . 19 . 120 9 61 43 5 . 131 119 Critical Strikes 15 | . . . 2 . 5 2 . 1 2 3 Part Disruptions 1 | . . . . . . . . . . 1 Damage Taken 7209 | . 213 . 1484 122 899 532 100 82 1570 2207 Core 587 | . 43 . 214 9 62 49 23 . 61 126 Absorbed by Shields . | . . . . . . . . . . . Redirected to Shielding 12 | . . . 12 . . . . . . . Ignored by Resistances 247 | . . . . . . . 7 . 240 . Regen/Repaired (Parts) 34 | . . . . . . . . 13 21 . Core Remaining (%) 82 | 100 . 82 . 44 88 93 . . 90 . Volleys Fired 164 | . 13 . 93 12 18 . . . 15 13 Largest 2 | . 2 . 2 2 2 . . . 1 1 Hottest 91 | . 60 . 85 91 91 . . . 36 72 Shots Fired 281 | . 26 . 182 16 27 . . . 15 15 Gun 228 | . 26 . 178 4 16 . . . . 4 Cannon 29 | . . . 4 8 9 . . . 8 . Launcher 24 | . . . . 4 2 . . . 7 11 Special . | . . . . . . . . . . . Kinetic 176 | . 13 . 135 4 16 . . . 8 . Thermal 74 | . 13 . 40 8 9 . . . . 4 Explosive 24 | . . . . 4 2 . . . 7 11 Electromagnetic 7 | . . . 7 . . . . . . . Robot Hit Streak 22 | . 8 . 22 4 7 . . . 6 7 Robot Miss Streak 4 | . 2 . 4 1 3 . . . 2 2 Penetration Max . | . . . . . . . . . . . Secondary Targets 3 | . 1 . 2 . . . . . . . Max Gunslinging Chain 1 | . 1 . 1 . . . . . . . Shots Hit Robots 288 | . 19 . 135 11 52 10 1 . 31 29 Core Hits 182 | . 6 . 51 11 28 7 . . 32 47 Critical Kills 1 | . . . . 1 . . . . . . Critical Parts Destroyed . | . . . . . . . . . . . Critical Strikes 24 | . . . 2 1 11 . . . 4 6 Burn 2 | . . . 2 . . . . . . . Meltdown 1 | . . . . 1 . . . . . . Sever 14 | . . . . . 11 . . . 3 . Impale 7 | . . . . . . . . . 1 6 Melee Attacks 193 | . . . . . 53 22 1 1 71 45 Impact . | . . . . . . . . . . . Slashing 130 | . . . . . 53 22 1 1 53 . Piercing 63 | . . . . . . . . . 18 45 Sneak Attacks 13 | . . . . . 4 . . . 1 8 Combat Hostiles . | . . . . . . . . . . . Follow-up Attacks . | . . . . . . . . . . . Damage Inflicted 11519 | . 188 . 1712 641 2078 465 58 . 2896 3481 Guns 2015 | . 188 . 1629 38 112 . . . . 48 Cannons 537 | . . . 83 100 162 . . . 192 . Explosions 4404 | . . . . 503 409 . . . 1489 2003 Melee 4550 | . . . . . 1395 465 58 . 1202 1430 Ramming 13 | . . . . . . . . . 13 . Kinetic 1427 | . 53 . 1032 38 112 . . . 192 . Thermal 1757 | . 135 . 573 100 162 . . . 739 48 Explosive 3665 | . . . . 503 409 . . . 750 2003 Electromagnetic 107 | . . . 107 . . . . . . . Impact . | . . . . . . . . . . . Slashing 2788 | . . . . . 1395 465 58 . 870 . Piercing 1762 | . . . . . . . . . 332 1430 Highest Corruption 16 | . . . . . . 4 . 16 16 8 Average Corruption 12 | . . . . . . 2 . 11 16 7 Corruption Purged . | . . . . . . . . . . . Corruption Blocked . | . . . . . . . . . . . Effects 125 | . . . . . . 11 . 10 82 22 Message Errors 35 | . . . . . . 5 . 2 24 4 Matter Fused 34 | . . . . . . 1 . 3 23 7 Heat Flow Errors 15 | . . . . . . 2 . 1 10 2 Energy Discharges 15 | . . . . . . 2 . 2 10 1 Parts Rejected 1 | . . . . . . . . 1 . . Parts Fused 1 | . . . . . . . . . . 1 Data Loss (minor) 10 | . . . . . . . . 1 7 2 Data Loss (major) 8 | . . . . . . 1 . . 5 2 Misfires 2 | . . . . . . . . . . 2 Alerts 2 | . . . . . . . . . 1 1 Misdirections 2 | . . . . . . . . . 2 . Overload Shots 3 | . . . . . . . . . . 3 Overflow Damage 726 | . . . . . 51 19 23 . 254 379 Projectiles 6 | . . . . . 6 . . . . . Explosions 230 | . . . . . . . . . 190 40 Melee 490 | . . . . . 45 19 23 . 64 339 Knockbacks . | . . . . . . . . . . . Impact . | . . . . . . . . . . . Kinetic . | . . . . . . . . . . . Secondary . | . . . . . . . . . . . Self-Inflicted Damage 264 | . . . . 19 . . . . 213 32 Shots 6 | . . . . 1 . . . . 3 2 Rammed 1 | . . . . . . . . . 1 . Targets Rammed 1 | . . . . . . . . . 1 . Kicked . | . . . . . . . . . . . Crushed . | . . . . . . . . . . . Highest Temperature 270 | . 76 . 138 144 153 169 . 90 270 259 Average Temperature 65 | . 33 . 30 68 65 79 . 66 93 80 Received Heat Transfer 1983 | . 114 . 540 42 450 168 12 . 453 204 Effects 1 | . . . . . . . . . 1 . Energy Bleed 1 | . . . . . . . . . 1 . Siege Activations . | . . . . . . . . . . . Martial Activations . | . . . . . . . . . . . Shielding Activations . | . . . . . . . . . . . Robots Disrupted . | . . . . . . . . . . . Combat Hostiles . | . . . . . . . . . . . Robots Corrupted 1 | . . . 1 . . . . . . . Combat Hostiles 1 | . . . 1 . . . . . . . Parts Fried 1 | . . . 1 . . . . . . . Impact Corruptions . | . . . . . . . . . . . Robots Melted 1 | . . . . 1 . . . . . . Combat Hostiles 1 | . . . . 1 . . . . . . Parts Melted 4 | . . . 4 . . . . . . . Heat Transferred 2791 | . 300 . 1480 185 296 . . . 450 80 Parts Sabotaged . | . . . . . . . . . . . Parts Stolen . | . . . . . . . . . . . Parts Stripped . | . . . . . . . . . . . Power Chain Reactions . | . . . . . . . . . . . Alert | -11 -10 -10 -9 -9 -8 -7 -6 -6 -6 -5 ------- Run | Yrd Mat Min Mat Min Mat Fac Fac Was Fac Fac Maximum Alert Level 2 | . . . 1 . 1 . . . 2 1 Low Security (%) 84 | . 100 100 79 100 78 100 100 100 83 56 Level 1 12 | . . . 20 . 21 . . . 3 43 Level 2 3 | . . . . . . . . . 13 . Level 3 . | . . . . . . . . . . . Level 4 . | . . . . . . . . . . . Level 5 . | . . . . . . . . . . . High Security . | . . . . . . . . . . . Max Security . | . . . . . . . . . . . Peak Influence 525 | . 70 . 270 147 291 143 15 16 525 342 Initial 253 | . . . . 36 17 129 8 . . 253 Average 96 | . 14 . 137 62 142 38 1 . 93 183 Influence Increases 3507 | . 94 . 739 237 587 209 15 30 972 624 Destroy 0b10 Robot/C 1880 | . 60 . 520 140 360 140 . . 420 240 Destroy 0b10 Robot/NC 135 | . . . 20 5 25 . . . 35 50 Destroy Leader 464 | . 20 . 124 30 86 40 . . 112 52 Allied During Kill 47 | . . . . . . . . . 47 . Successful Hack 47 | . 14 . 14 . 5 14 . . . . Disable Machine 180 | . . . . 15 . . . . 90 75 Destroy Structure 334 | . . . 1 32 6 . . 30 133 132 Partial Spotted 15 | . . . . . . . . . 15 . Lose Combat Pursuer 405 | . . . 60 15 105 15 15 . 120 75 Influence Decreases 3198 | . 94 . 644 287 347 476 33 30 454 833 Entered New Map 518 | . . . . 59 28 156 10 . . 265 Time Decay 2156 | . 94 . 444 228 309 289 23 13 328 428 Lost Part 236 | . . . 50 . 10 16 . . 20 140 Lost Ally 123 | . . . . . . . . 17 106 . Purge Threat 165 | . . . 150 . . 15 . . . . Squads Dispatched 27 | . 3 . 1 . 3 4 1 . 13 2 Investigation 4 | . 2 . . . . . . . 2 . Extermination 9 | . . . . . . 1 1 . 5 2 Reinforcement 11 | . 1 . 1 . 3 3 . . 3 . Assault . | . . . . . . . . . . . Garrison 3 | . . . . . . . . . 3 . Intercept . | . . . . . . . . . . . Searches Triggered . | . . . . . . . . . . . Construction Impeded 1 | . . . . . 1 . . . . . Haulers Reinforced . | . . . . . . . . . . . Active Scanning Responses . | . . . . . . . . . . . Cargo Convoy Interrupts 1 | . . . . . . . . . . 1 Stealth | -11 -10 -10 -9 -9 -8 -7 -6 -6 -6 -5 --------- Run | Yrd Mat Min Mat Min Mat Fac Fac Was Fac Fac Distress Signals 8 | . . . 2 . 2 1 . . 2 1 Communications Jammed 35 | . . . . . . . . . . 35 Distress Signals 35 | . . . . . . . . . . 35 Times Spotted 178 | . 6 . 42 8 29 17 4 5 33 34 Peak Tracking Total 12 | . 3 . 5 3 5 4 2 4 5 12 Tactical Retreats 22 | . . . 4 1 6 1 1 . 6 3 Traps | -11 -10 -10 -9 -9 -8 -7 -6 -6 -6 -5 ------- Run | Yrd Mat Min Mat Min Mat Fac Fac Was Fac Fac Traps Triggered 5 | . 2 . . . . . 2 . 1 . Indirectly . | . . . . . . . . . . . Trap Hack Attempts . | . . . . . . . . . . . Triggered . | . . . . . . . . . . . Disarmed . | . . . . . . . . . . . Reprogrammed . | . . . . . . . . . . . Reused . | . . . . . . . . . . . Traps Extracted . | . . . . . . . . . . . Installed . | . . . . . . . . . . . Triggered . | . . . . . . . . . . . Machines | -11 -10 -10 -9 -9 -8 -7 -6 -6 -6 -5 ---------- Run | Yrd Mat Min Mat Min Mat Fac Fac Was Fac Fac Machines Disabled 12 | . . . . 1 . . . . 6 5 Max in Single Turn 4 | . . . . 1 . . . . 4 1 Garrison Access 1 | . . . . . . . . . . 1 Machines Repaired . | . . . . . . . . . . . Machines Dismantled . | . . . . . . . . . . . Machines Sabotaged . | . . . . . . . . . . . Overloaded Fab Kills . | . . . . . . . . . . . Hacking | -11 -10 -10 -9 -9 -8 -7 -6 -6 -6 -5 --------- Run | Yrd Mat Min Mat Min Mat Fac Fac Was Fac Fac Machines Accessed 26 | . 2 . 4 . 3 4 1 . 9 3 Terminals 19 | . 2 . 4 . 3 3 1 . 4 2 Fabricators . | . . . . . . . . . . . Repair Stations 1 | . . . . . . . . . 1 . Recycling Units 3 | . . . . . . 1 . . 2 . Scanalyzers 1 | . . . . . . . . . 1 . Garrison Access 2 | . . . . . . . . . 1 1 Total Hacks 60 | . 9 . 11 . 7 10 1 . 15 7 Successful 24 | . 5 . 6 . 3 4 . . 4 2 Failed 36 | . 4 . 5 . 4 6 1 . 11 5 Catastrophic 5 | . . . . . 2 1 . . 1 1 Database Lockouts . | . . . . . . . . . . . Manual 13 | . 4 . 1 . 4 1 . . 1 2 Terminals 46 | . 9 . 11 . 7 9 1 . 5 4 Fabricators . | . . . . . . . . . . . Repair Stations 3 | . . . . . . . . . 3 . Recycling Units 3 | . . . . . . 1 . . 2 . Scanalyzers 1 | . . . . . . . . . 1 . Garrison Access 7 | . . . . . . . . . 4 3 Terminal Hacks 19 | . 3 . 6 . 3 4 . . 2 1 Record 1 | . . . . . 1 . . . . . Open DSF 1 | . . . . . . . . . 1 . Alert Level 3 | . . . 1 . . 1 . . . 1 Unreport Threat 3 | . . . 1 . . 2 . . . . Locate Traps 5 | . 1 . 2 . . 1 . . 1 . Dispatch Records 1 | . 1 . . . . . . . . . Reinforcement Status 1 | . . . . . 1 . . . . . Zone Layout 4 | . 1 . 2 . 1 . . . . . Fabricator Hacks . | . . . . . . . . . . . Repair Station Hacks 2 | . . . . . . . . . 2 . Scan Component 1 | . . . . . . . . . 1 . Repair 1 | . . . . . . . . . 1 . Recycling Unit Hacks . | . . . . . . . . . . . Scanalyzer . | . . . . . . . . . . . Garrison Access Hacks 1 | . . . . . . . . . . 1 Seal Access 1 | . . . . . . . . . . 1 Unauthorized Hacks 2 | . 2 . . . . . . . . . Terminals 2 | . 2 . . . . . . . . . Assimilate 1 | . 1 . . . . . . . . . Botnet 1 | . 1 . . . . . . . . . Fabricators . | . . . . . . . . . . . Repair Stations . | . . . . . . . . . . . Recycling Units . | . . . . . . . . . . . Scanalyzers . | . . . . . . . . . . . Garrison Access . | . . . . . . . . . . . Data Cores Recovered 1 | . . . . . . . . . . 1 Used 1 | . . . . . . . . . . 1 Hacking Detections 25 | . 2 . 4 . 3 4 1 . 8 3 Full Trace Events 2 | . . . . . . . . . 2 . Feedback Events . | . . . . . . . . . . . Feedback Blocked . | . . . . . . . . . . . Robot Schematics Acquired . | . . . . . . . . . . . Robots Built . | . . . . . . . . . . . Authchips . | . . . . . . . . . . . Time . | . . . . . . . . . . . Total Robot Build Rating . | . . . . . . . . . . . Part Schematics Acquired . | . . . . . . . . . . . Parts Built . | . . . . . . . . . . . Authchips . | . . . . . . . . . . . Time . | . . . . . . . . . . . Total Part Build Rating . | . . . . . . . . . . . Parts Repaired 1 | . . . . . . . . . 1 . Time 95 | . . . . . . . . . 95 . Parts Recycled . | . . . . . . . . . . . Recycled Matter . | . . . . . . . . . . . Retrieved Matter . | . . . . . . . . . . . Retrieved Components . | . . . . . . . . . . . Parts Scanalyzed . | . . . . . . . . . . . Part Schematics Acquired . | . . . . . . . . . . . Parts Damaged . | . . . . . . . . . . . Bothacking | -11 -10 -10 -9 -9 -8 -7 -6 -6 -6 -5 ------------ Run | Yrd Mat Min Mat Min Mat Fac Fac Was Fac Fac Used RIF Installer . | . . . . . . . . . . . Robots Hacked . | . . . . . . . . . . . Non-combat . | . . . . . . . . . . . Combat . | . . . . . . . . . . . Robot Hacks Applied . | . . . . . . . . . . . Relay Couplers Released . | . . . . . . . . . . . Fabnet Peak Effective % . | . . . . . . . . . . . Robots Rewired . | . . . . . . . . . . . Allies Hacked . | . . . . . . . . . . . Hacks Repelled . | . . . . . . . . . . . Allies | -11 -10 -10 -9 -9 -8 -7 -6 -6 -6 -5 -------- Run | Yrd Mat Min Mat Min Mat Fac Fac Was Fac Fac Total Allies 21 | . . . . 2 . . . 19 . . Largest Group 19 | . . . . 2 2 . . 19 6 . Highest-Rated Group 684 | . . . . 43 43 . . 684 198 . Highest-Rated Ally 50 | . . . . 31 31 . . 50 50 . Total Orders . | . . . . . . . . . . . Ally Attacks 117 | . . . . . 6 . . 63 48 . Total Damage 4214 | . . . . . 21 . . 3567 626 . Kills 10 | . . . . . . . . 6 4 . Allies Corrupted . | . . . . . . . . . . . Allies Melted 1 | . . . . . 1 . . . . . Intel | -11 -10 -10 -9 -9 -8 -7 -6 -6 -6 -5 ------- Run | Yrd Mat Min Mat Min Mat Fac Fac Was Fac Fac Active Infowar (turns) 5804 | . . . . 351 821 949 461 201 1981 1040 Sensors 4373 | . . . . . 251 731 461 201 1910 819 Terrain 3187 | . . . . 351 458 . 139 201 1274 764 Structural 1820 | . . . . . 570 948 302 . . . Jamming 547 | . . . . . . . . . . 547 Robot Analysis Total . | . . . . . . . . . . . Derelict Logs Recovered 1 | . . . . 1 . . . . . . Drone Launches . | . . . . . . . . . . . Drone Recoveries . | . . . . . . . . . . . Exploration | -11 -10 -10 -9 -9 -8 -7 -6 -6 -6 -5 ------------- Run | Yrd Mat Min Mat Min Mat Fac Fac Was Fac Fac Turns Passed 7818 | . 372 15 1303 566 821 949 461 240 2051 1040 Spaces Moved 4841 | 1 265 14 557 369 428 690 361 179 1265 712 Core . | . . . . . . . . . . . Treads 184 | . 18 . 164 . 2 . . . . . Legs 1271 | 1 66 . 19 . 257 690 238 . . . Wheels 3309 | . 181 14 374 369 169 . 123 179 1265 635 Hover 77 | . . . . . . . . . . 77 Flight . | . . . . . . . . . . . Fastest Speed 85 | 120 115 115 85 130 110 120 115 98 111 95 Average Speed 124 | 120 119 115 153 135 120 120 118 115 125 109 Slowest Speed 260 | 120 160 115 260 145 240 120 120 140 145 172 Overloaded Moves . | . . . . . . . . . . . Propulsion Burnouts . | . . . . . . . . . . . Robots Hopped . | . . . . . . . . . . . Potential Cave-ins . | . . . . . . . . . . . Cave-ins Triggered . | . . . . . . . . . . . Exploration Rate (%) 34 | 2 39 10 63 64 31 16 9 91 42 16 Regions Visited 10 Branch Regions 2 Pre-discovered Areas 1 | . . . . 1 . . . . . . Known Exits Taken 2 | . . . . 1 . . . . 1 . Unknown Exits Taken 6 | 1 1 1 1 . 1 1 . . . . Scrap Searched 2 | . . . . 2 . . . . . . Spaces Dug 73 | . . . . 13 . . . 1 43 16 Terrain Destroyed 279 | . . . . 37 5 . . 1 146 90 Melee 60 | . . . . . . . . 1 43 16 Projectile 4 | . . . . 1 . . . . 2 1 AOE 215 | . . . . 36 5 . . . 101 73 Terrain Rammed . | . . . . . . . . . . . Walls Destroyed . | . . . . . . . . . . . Machines Disabled . | . . . . . . . . . . . Actions | -11 -10 -10 -9 -9 -8 -7 -6 -6 -6 -5 --------- Run | Yrd Mat Min Mat Min Mat Fac Fac Was Fac Fac Total 6059 | . 295 13 847 420 659 784 394 213 1568 866 Wait 375 | . 9 . 98 24 80 33 6 10 100 15 Move 4832 | . 264 13 556 368 427 689 361 178 1264 712 Hop . | . . . . . . . . . . . Pick Up 121 | . 3 . 28 4 21 12 6 7 23 17 Fast Attach 50 | . 1 . 12 1 9 4 4 3 7 9 Attach 48 | . . . 8 1 4 3 1 3 15 13 Detach 25 | . . . 4 1 3 2 . 3 7 5 Swap 98 | . 4 . 14 4 17 6 5 . 29 19 Drop 144 | . 1 . 34 5 27 13 10 8 28 18 Fire 164 | . 13 . 93 12 18 . . . 15 13 Melee 193 | . . . . . 53 22 1 1 71 45 Ram 1 | . . . . . . . . . 1 . Kick . | . . . . . . . . . . . Crush . | . . . . . . . . . . . Escape Stasis 8 | . . . . . . . . . 8 . Rewire . | . . . . . . . . . . . Trap . | . . . . . . . . . . . Miscellaneous . | . . . . . . . . . . . Route ------- -11/Scrapyard -10/Materials (discovered 2 exits: Mat / [*Min]) -10/Mines -9/Materials -9/Mines -8/Materials -7/Factory -6/Factory -6/Waste -6/Factory (discovered 2 exits: *Fac x2) -5/Factory History --------- Turn | Location | Event 1 | -11/Scrapyard | Discovered new exit (range 0) 1 | -11/Scrapyard | Entered Materials 219 | -10/Materials | Discovered new exit (range 16) 265 | -10/Materials | Discovered new exit (range 13) 316 | -10/Materials | Build established: Mutant 373 | -10/Materials | Entered Mines 383 | -10/Mines | Discovered new exit (range 6) 388 | -10/Mines | Entered Materials 388 | -9/Materials | Evolved 2 slots: Propulsion x1, Utility x1 854 | -9/Materials | Discovered new exit (range 14) 1012 | -9/Materials | Build established: Scavenger-Mutant 1461 | -9/Materials | Core integrity fell below 50% 1691 | -9/Materials | Entered Mines 1754 | -9/Mines | Identified exit to Materials 1929 | -9/Mines | Learned location of Storage (-8) 2069 | -9/Mines | A weapon hastily lodged in a ceiling crevice suddenly fell to the ground 2257 | -9/Mines | Entered Materials 2257 | -8/Materials | Accompanied by 2 allies 2257 | -8/Materials | Evolved 2 slots: Utility x2 2262 | -8/Materials | Led the pair of lost Derelicts to an unsafe place 2601 | -8/Materials | Discovered new exit (range 11) 3078 | -8/Materials | Entered Factory 3078 | -7/Factory | Evolved 2 slots: Propulsion x1, Utility x1 3160 | -7/Factory | Discovered new exit (range 6) 4027 | -7/Factory | Entered another Factory area 4027 | -6/Factory | Evolved 2 slots: Utility x2 4033 | -6/Factory | Build established: Scavenger-Gladiator 4156 | -6/Factory | Discovered new exit (range 8) 4362 | -6/Factory | Spotted B-75 Beast 4488 | -6/Factory | Sucked down chute 4488 | -6/Factory | Entered Waste 4494 | -6/Waste | Spotted C-40 Crusher 4503 | -6/Waste | EMP discharged 4535 | -6/Waste | Spotted C-40 Crusher 4552 | -6/Waste | Spotted C-40 Crusher 4555 | -6/Waste | Spotted C-40 Crusher 4557 | -6/Waste | Crushed by Compactor (1 part destroyed) 4558 | -6/Waste | Spotted C-40 Crusher 4560 | -6/Waste | Crushed by Compactor (1 part destroyed) 4577 | -6/Waste | Met Warlord forces unprepared to attack 4585 | -6/Waste | Allies destroyed C-40 Crusher 4587 | -6/Waste | Allies destroyed C-40 Crusher 4587 | -6/Waste | Allies destroyed C-40 Crusher 4591 | -6/Waste | Lost 3 parts (2n1u) 4603 | -6/Waste | EMP discharged 4603 | -6/Waste | System corruption reached 10% 4615 | -6/Waste | Lost 3 allies 4642 | -6/Waste | Build established: Gladiator 4657 | -6/Waste | Allies destroyed C-40 Crusher 4690 | -6/Waste | Found Damper Plating 4703 | -6/Waste | EMP discharged 4717 | -6/Waste | Discovered new exit (range 10) 4728 | -6/Waste | Entered Factory 4728 | -6/Factory | Accompanied by 6 allies 4891 | -6/Factory | Garrison activated, responded to threat 4944 | -6/Factory | Lost 5 allies 4963 | -6/Factory | Repaired Corrupted Enh. Force Lance? 5770 | -6/Factory | Build established: Scavenger-Assassin 5886 | -6/Factory | Discovered new exit (range 14) 5905 | -6/Factory | Identified exit to Factory 6691 | -6/Factory | Discovered exit to Factory (range 13) 6779 | -6/Factory | Entered another Factory area 6779 | -5/Factory | Evolved 2 slots: Power x1, Propulsion x1 7486 | -5/Factory | Cargo convoy interrupted 7543 | -5/Factory | Destroyed 9 combat bots 7549 | -5/Factory | Lost 5 parts (1p1n3u) 7819 | -5/Factory | Self-destructed Last Messages --------------- 07766_ U KO,DUO8R7=CEQM4LS